bitfinex/quotes_SOLUSD_20220104
["timestamp","ask_amount","ask_price","bid_price","bid_amount"]
[1641326578071,2.95004546,168.83,168.69,24.6491]
[1641326579774,2.45004546,168.83,168.69,24.6491]
[1641326580376,13.10455973,168.83,168.69,24.6491]
[1641326581178,13.60455973,168.83,168.69,24.6491]
[1641326581378,14.6578943,168.83,168.69,24.6491]
[1641326581982,13.10455973,168.83,168.69,24.6491]
[1641326582379,13.86455973,168.83,168.69,24.6491]
[1641326582882,22.5178943,168.83,168.69,23.3447]
[1641326583679,1.55333457,168.81,168.69,23.3447]
[1641326583878,3.04508898,168.8,168.69,23.3447]
[1641326584082,3.30508898,168.8,168.69,23.3447]
[1641326584282,3.80508898,168.8,168.69,23.3447]
[1641326584480,27.35380458,168.79,168.69,23.3447]
[1641326585881,3.80508898,168.8,168.69,23.3447]
[1641326588086,3.80508898,168.8,168.69,23.0847]
[1641326588288,3.80508898,168.8,168.69,0.5]
[1641326588489,3.80508898,168.8,168.68,29.5984529]
[1641326588688,3.80508898,168.8,168.68,29.0984529]
[1641326589589,5.35842355,168.8,168.68,29.0984529]
[1641326589990,12.45842355,168.8,168.68,29.0984529]
[1641326590991,12.45842355,168.8,168.65,23.577]
[1641326591191,1.55333457,168.79,168.65,24.077]
[1641326591390,2.35869768,168.77,168.65,24.077]
[1641326591590,2.61869768,168.77,168.65,0.76]
[1641326591793,28.35289768,168.77,168.65,0.26]
[1641326591990,34.5106721,168.77,168.62,24.427111]
[1641326592191,28.09289768,168.77,168.62,24.687111]
[1641326592391,1.2692,168.77,168.63,30.3958]
[1641326592591,81.34403457,168.79,168.63,30.6558]
[1641326592792,81.34403457,168.79,168.64,1.288]
[1641326592992,81.34403457,168.79,168.65,7.1]
[1641326593194,79.7907,168.79,168.66,52.93611918]
[1641326593395,2.53053552,168.78,168.67,7.1]
[1641326593600,2.53053552,168.78,168.67,8.4344]
[1641326593799,1.55333457,168.81,168.67,9.1944]
[1641326593998,1.55333457,168.82,168.68,102.98600786]
[1641326594198,1.55333457,168.82,168.69,7.1]
[1641326594402,1.55333457,168.82,168.69,9.04850786]
[1641326594600,15.9953,168.85,168.7,1.44850786]
[1641326594801,2.15520071,168.84,168.71,7.1]
[1641326595001,2.15520071,168.84,168.72,24.0094]
[1641326595402,2.15520071,168.84,168.72,24.7694]
[1641326596801,2.15520071,168.84,168.72,24.5094]
[1641326597005,7.31636361,168.83,168.72,24.0094]
[1641326597402,8.07636361,168.83,168.72,24.0094]
[1641326597602,8.07636361,168.83,168.7,23.33846983]
[1641326597802,8.07636361,168.83,168.7,23.83846983]
[1641326598002,8.07636361,168.83,168.7,23.33846983]
[1641326598202,8.07636361,168.83,168.69,30.1496]
[1641326598203,7.1,168.82,168.69,23.0496]
[1641326598402,7.6,168.82,168.65,7.1]
[1641326598602,2.25727304,168.8,168.63,1.3486]
[1641326598801,7.1,168.79,168.63,1.3486]
[1641326599002,53.20685524,168.78,168.64,28.53727923]
[1641326599205,2.81439567,168.77,168.64,28.53727923]
[1641326599404,3.31439567,168.77,168.64,28.53727923]
[1641326599607,3.57439567,168.77,168.64,28.53727923]
[1641326599828,3.31439567,168.77,168.64,28.53727923]
[1641326600026,3.31439567,168.77,168.64,28.79727923]
[1641326600226,3.31439567,168.77,168.65,24.6298]
[1641326600429,2.81439567,168.77,168.65,24.6298]
[1641326600629,2.81439567,168.77,168.65,24.8898]
[1641326600829,2.81439567,168.77,168.65,25.3898]
[1641326605529,3.07439567,168.77,168.65,24.8898]
[1641326605728,3.57439567,168.77,168.65,24.8898]
[1641326605929,8.10660868,168.76,168.65,24.6298]
[1641326606129,8.10660868,168.76,168.62,78.9282]
[1641326606329,15.96660868,168.76,168.63,0.5]
[1641326606931,39.80470868,168.76,168.62,79.4282]
[1641326607130,39.80470868,168.76,168.62,104.68364077]
[1641326607333,39.80470868,168.76,168.62,104.94364077]
[1641326607532,41.08290868,168.76,168.62,104.94364077]
[1641326608633,41.08290868,168.76,168.6,411.73197042]
[1641326608832,76.2472,168.75,168.6,411.73197042]
[1641326609032,9.33451703,168.74,168.6,410.50187042]
[1641326609231,32.79311703,168.74,168.6,410.50187042]
[1641326609432,33.55311703,168.74,168.6,410.50187042]
[1641326609631,33.55311703,168.74,168.6,437.30073624]
[1641326609835,33.55311703,168.74,168.6,437.80073624]
[1641326610032,33.55311703,168.74,168.6,438.06073624]
[1641326610233,34.80821703,168.74,168.6,438.06073624]
[1641326610833,34.80821703,168.74,168.6,27.55886582]
[1641326611033,34.80821703,168.74,168.59,24.6513]
[1641326611334,34.80821703,168.74,168.54,7.1]
[1641326611536,42.36869717,168.74,168.55,1.44850786]
[1641326611734,42.36869717,168.74,168.52,112.56680786]
[1641326611934,32.47758223,168.71,168.53,28.76172104]
[1641326612135,7.1,168.7,168.53,28.76172104]
[1641326612337,31.9736,168.7,168.53,29.26172104]
[1641326612536,32.2336,168.7,168.53,29.26172104]
[1641326612737,2.16663307,168.68,168.53,28.76172104]
[1641326612937,8.10660868,168.66,168.53,28.76172104]
[1641326613136,2.45365132,168.65,168.53,28.76172104]
[1641326613337,2.45365132,168.65,168.52,104.0183]
[1641326613338,10.05365132,168.65,168.52,104.0183]
[1641326613541,10.31365132,168.65,168.52,104.2783]
[1641326613740,10.31365132,168.65,168.52,104.0183]
[1641326613941,10.31365132,168.65,168.51,22.6957]
[1641326614440,10.31365132,168.65,168.52,30.41311773]
[1641326615645,10.31365132,168.65,168.52,30.67311773]
[1641326615843,10.31365132,168.65,168.52,0.26]
[1641326616043,10.31365132,168.65,168.51,22.9557]
[1641326616243,14.98665132,168.65,168.51,22.9557]
[1641326616844,14.98665132,168.65,168.52,25.72895144]
[1641326617044,10.05365132,168.65,168.52,25.98895144]
[1641326617245,10.31365132,168.65,168.52,25.98895144]
[1641326617448,10.31365132,168.65,168.52,26.48895144]
[1641326618248,10.31365132,168.65,168.53,23.1587]
[1641326618645,10.31365132,168.65,168.53,23.4187]
[1641326619850,10.31365132,168.65,168.51,102.1006]
[1641326620048,15.83365132,168.65,168.51,79.4049]
[1641326620247,15.83365132,168.65,168.5,100.0]
[1641326621047,15.83365132,168.65,168.5,100.26]
[1641326621647,15.83365132,168.65,168.5,100.0]
[1641326622849,15.83365132,168.65,168.5,100.26]
[1641326624051,8.9052,168.64,168.5,100.0]
[1641326624252,7.1,168.63,168.5,100.0]
[1641326624451,3.05360746,168.62,168.5,100.0]
[1641326624656,7.1,168.61,168.5,100.0]
[1641326624854,29.8948304,168.6,168.5,100.0]
[1641326625053,2.75181385,168.58,168.5,100.0]
[1641326625257,9.85181385,168.58,168.5,100.0]
[1641326625454,10.61181385,168.58,168.5,100.0]
[1641326627479,19.52061385,168.58,168.5,100.0]
[1641326628579,10.61181385,168.58,168.5,100.0]
[1641326632482,19.59261385,168.58,168.5,100.0]
[1641326635495,19.09261385,168.58,168.5,100.0]
[1641326635692,19.09261385,168.58,168.5,100.26]
[1641326635892,9.85181385,168.58,168.5,100.26]
[1641326636893,10.35181385,168.58,168.5,100.26]
[1641326637295,10.61181385,168.58,168.5,100.26]
[1641326637494,10.61181385,168.58,168.5,100.0]
[1641326640001,10.61181385,168.58,168.5,100.26]
[1641326640205,10.35181385,168.58,168.5,100.26]
[1641326641500,10.61181385,168.58,168.5,100.26]
[1641326642103,10.61181385,168.58,168.5,100.0]
[1641326642503,10.35181385,168.58,168.5,100.0]
[1641326643506,10.35181385,168.58,168.5,100.26]
[1641326644104,7.6,168.58,168.5,100.26]
[1641326644312,88.82553457,168.61,168.5,100.26]
[1641326644313,80.13303457,168.61,168.5,100.26]
[1641326644505,1.55333457,168.61,168.5,100.26]
[1641326644704,2.05333457,168.61,168.5,100.76]
[1641326644905,1.55333457,168.61,168.5,100.76]
[1641326645106,1.55333457,168.62,168.51,23.1228]
[1641326645307,2.93184538,168.61,168.51,24.4283]
[1641326645506,2.93184538,168.61,168.51,25.1883]
[1641326647109,2.93184538,168.61,168.51,23.8828]
[1641326647309,3.69184538,168.61,168.51,0.26]
[1641326647512,3.69184538,168.61,168.5,100.26]
[1641326648210,1.44850786,168.6,168.5,100.26]
[1641326648412,13.31026912,168.59,168.5,100.26]
[1641326648812,1.44850786,168.58,168.5,100.26]
[1641326649011,2.29580512,168.57,168.5,100.0]
[1641326649218,9.39580512,168.57,168.5,100.0]
[1641326649412,1.44850786,168.56,168.5,100.0]
[1641326649812,2.20850786,168.56,168.5,100.0]
[1641326651717,7.1,168.55,168.5,100.0]
[1641326651915,2.98570052,168.54,168.5,100.0]
[1641326652336,3.48570052,168.54,168.5,100.0]
[1641326653837,4.93420838,168.54,168.5,100.0]
[1641326654038,4.93420838,168.54,168.5,100.26]
[1641326654238,3.48570052,168.54,168.5,100.26]
[1641326657440,3.48570052,168.54,168.5,100.0]
[1641326659142,0.5,168.54,168.5,100.0]
[1641326659341,7.6,168.55,168.5,100.0]
[1641326660141,7.6,168.55,168.5,100.26]
[1641326663642,7.6,168.55,168.5,100.0]
[1641326663843,1.44850786,168.54,168.5,100.0]
[1641326664049,7.1,168.53,168.5,100.0]
[1641326664245,6.06045808,168.52,168.5,100.0]
[1641326664445,9.40685419,168.51,168.5,100.0]
[1641326664644,10.85536205,168.51,168.5,100.0]
[1641326664844,36.31341178,168.51,168.5,100.0]
[1641326667648,39.34364082,168.51,168.39,23.0977]
[1641326668049,1.44850786,168.5,168.39,23.0977]
[1641326668249,7.1,168.49,168.39,23.0977]
[1641326668452,7.6,168.49,168.39,23.0977]
[1641326668650,7.86,168.49,168.39,23.0977]
[1641326668850,7.86,168.49,168.39,23.3577]
[1641326669853,7.6,168.49,168.39,23.3577]
[1641326671054,7.86,168.49,168.39,23.3577]
[1641326672552,7.86,168.49,168.37,2.93627499]
[1641326672751,14.8884714,168.35,168.27,7.1]
[1641326672951,2.41969156,168.34,168.26,48.6078]
[1641326673352,3.17969156,168.34,168.26,48.6078]
[1641326673551,2.91969156,168.34,168.26,48.6078]
[1641326673753,3.17969156,168.34,168.24,26.61837589]
[1641326673951,11.72819942,168.34,168.24,26.61837589]
[1641326674152,10.27969156,168.34,168.24,26.61837589]
[1641326674950,10.27969156,168.34,168.22,25.8239]
[1641326675150,10.27969156,168.34,168.22,26.3239]
[1641326675950,10.27969156,168.34,168.22,26.5839]
[1641326677356,7.1,168.34,168.22,26.5839]
[1641326677554,12.33341789,168.35,168.23,64.44850786]
[1641326677753,1.55333457,168.36,168.24,40.0]
[1641326677953,1.55333457,168.36,168.24,2.20850786]
[1641326678154,1.55333457,168.36,168.25,1.44850786]
[1641326678354,3.83420806,168.36,168.25,1.94850786]
[1641326678589,3.83420806,168.36,168.25,2.20850786]
[1641326679054,2.28087349,168.36,168.25,2.20850786]
[1641326679254,8.65333457,168.4,168.26,1.44850786]
[1641326679457,9.15333457,168.4,168.26,1.94850786]
[1641326679655,9.41333457,168.4,168.26,2.20850786]
[1641326680255,2.23186254,168.39,168.26,2.20850786]
[1641326680458,2.73186254,168.39,168.26,2.20850786]
[1641326680657,2.99186254,168.39,168.26,2.20850786]
[1641326681361,2.73186254,168.39,168.26,2.20850786]
[1641326681562,7.1,168.4,168.26,2.20850786]
[1641326681761,7.1,168.4,168.27,1.44850786]
[1641326681964,7.6,168.4,168.27,1.70850786]
[1641326682161,7.1,168.4,168.27,2.20850786]
[1641326682361,27.11289043,168.39,168.27,0.76]
[1641326682561,29.69354618,168.39,168.28,1.44850786]
[1641326682760,29.69354618,168.39,168.26,1.44850786]
[1641326682961,29.69354618,168.39,168.28,24.95385393]
[1641326683161,2.58065575,168.39,168.28,24.95385393]
[1641326683361,2.58065575,168.39,168.28,25.71385393]
[1641326683562,7.6,168.4,168.28,25.71385393]
[1641326684060,7.6,168.4,168.28,27.16236179]
[1641326684061,7.1,168.4,168.28,27.16236179]
[1641326684863,2.60573122,168.41,168.28,27.16236179]
[1641326685065,2.60573122,168.41,168.29,23.764]
[1641326685362,2.60573122,168.41,168.3,1.44850786]
[1641326685563,2.60573122,168.41,168.3,1.70850786]
[1641326685763,2.60573122,168.41,168.3,2.20850786]
[1641326688264,7.1,168.43,168.3,2.20850786]
[1641326688664,7.56048014,168.46,168.31,7.1]
[1641326688665,1.55333457,168.46,168.31,7.1]
[1641326688867,1.55333457,168.46,168.32,23.6345]
[1641326689166,1.55333457,168.46,168.32,25.34300786]
[1641326689466,2.61025394,168.45,168.33,1.44850786]
[1641326689869,2.61025394,168.45,168.33,2.20850786]
[1641326690470,2.87025394,168.45,168.33,0.76]
[1641326690872,7.1,168.44,168.32,24.1345]
[1641326691271,7.86,168.44,168.32,24.1345]
[1641326691475,7.36,168.44,168.32,24.1345]
[1641326691874,7.86,168.44,168.32,24.1345]
[1641326692075,7.1,168.44,168.32,24.3945]
[1641326692276,7.1,168.44,168.33,1.44850786]
[1641326692479,7.1,168.44,168.33,0.76]
[1641326692676,7.6,168.44,168.33,0.26]
[1641326693276,7.6,168.44,168.32,24.3945]
[1641326693476,7.1,168.44,168.32,24.3945]
[1641326694302,14.75755238,168.43,168.32,24.3945]
[1641326694902,2.29604724,168.42,168.32,23.8945]
[1641326695109,9.65604724,168.42,168.32,23.8945]
[1641326695307,10.15604724,168.42,168.32,23.8945]
[1641326696607,9.89604724,168.42,168.32,23.8945]
[1641326696807,9.65604724,168.42,168.32,23.8945]
[1641326697009,2.29604724,168.42,168.32,23.8945]
[1641326697207,2.29604724,168.42,168.32,24.3945]
[1641326698410,9.39604724,168.42,168.32,24.3945]
[1641326698612,9.39604724,168.42,168.32,23.8945]
[1641326698810,9.65604724,168.42,168.32,23.8945]
[1641326699509,10.15604724,168.42,168.32,23.8945]
[1641326699913,10.15604724,168.42,168.32,0.26]
[1641326700116,10.15604724,168.42,168.3,95.6412]
[1641326701415,10.15604724,168.42,168.3,23.2539]
[1641326708254,10.15604724,168.42,168.31,24.5281]
[1641326708552,10.15604724,168.42,168.31,24.7881]
[1641326710955,10.15604724,168.42,168.31,24.5281]
[1641326712056,7.1,168.42,168.31,24.7881]
[1641326712256,1.55333457,168.43,168.31,26.73660786]
[1641326712457,1.55333457,168.43,168.32,7.1]
[1641326712656,1.55333457,168.43,168.32,8.3352]
[1641326712861,1.55333457,168.44,168.32,9.0952]
[1641326713057,2.5495305,168.43,168.33,22.9008]
[1641326713660,4.49803836,168.43,168.33,22.9008]
[1641326713860,11.59803836,168.43,168.33,22.9008]
[1641326714261,11.59803836,168.43,168.3,22.9939]
[1641326714759,11.59803836,168.43,168.3,23.2539]
[1641326714959,11.59803836,168.43,168.3,23.7539]
[1641326715162,11.59803836,168.43,168.31,22.5002]
[1641326715561,10.1495305,168.43,168.31,22.7602]
[1641326716262,10.1495305,168.43,168.31,23.2602]
[1641326716462,9.6495305,168.43,168.31,24.6161]
[1641326717063,11.35803836,168.43,168.31,24.3561]
[1641326717266,11.85803836,168.43,168.31,23.8561]
[1641326719273,11.85803836,168.43,168.31,24.1161]
[1641326720669,11.85803836,168.43,168.31,22.7602]
[1641326720870,11.85803836,168.43,168.31,22.5002]
[1641326721071,16.67603836,168.43,168.21,7.1]
[1641326721271,102.45694557,168.42,168.22,24.9393]
[1641326721475,7.1,168.41,168.22,25.4393]
[1641326721673,2.9250108,168.4,168.22,25.4393]
[1641326721872,31.0305,168.39,168.22,25.4393]
[1641326722072,8.32386251,168.38,168.22,25.4393]
[1641326722274,32.19017923,168.37,168.22,25.4393]
[1641326722473,41.86887923,168.37,168.22,25.6993]
[1641326722672,1.44850786,168.36,168.22,25.6993]
[1641326722875,7.1,168.35,168.22,25.1993]
[1641326723076,2.51733968,168.34,168.2,79.6931]
[1641326723273,7.1,168.33,168.16,491.0104214]
[1641326723474,31.82640524,168.31,168.17,27.45541519]
[1641326724000,34.0349131,168.31,168.17,27.45541519]
[1641326724399,34.0349131,168.31,168.17,27.95541519]
[1641326724600,34.0349131,168.31,168.17,27.45541519]
[1641326724898,7.1,168.3,168.16,26.931]
[1641326725103,79.9232,168.3,168.16,26.931]
[1641326725300,80.4232,168.3,168.16,26.931]
[1641326725500,80.4232,168.3,168.16,27.191]
[1641326725899,80.4232,168.3,168.16,27.691]
[1641326726098,80.4232,168.3,168.16,55.0286901]
[1641326726499,80.4232,168.3,168.16,27.431]
[1641326727000,81.87170786,168.3,168.16,27.431]
[1641326727801,81.87170786,168.3,168.16,27.691]
[1641326728205,81.87170786,168.3,168.16,26.3748]
[1641326728602,81.87170786,168.3,168.16,26.1148]
[1641326728903,106.83550786,168.3,168.16,26.1148]
[1641326729803,106.83550786,168.3,168.16,26.3748]
[1641326731707,108.14810786,168.3,168.16,26.3748]
[1641326734814,108.14810786,168.3,168.16,24.3107]
[1641326735414,108.14810786,168.3,168.13,1.3002]
[1641326735615,108.14810786,168.3,168.13,1.8002]
[1641326735818,114.15525343,168.3,168.13,1.8002]
[1641326736315,2.5381621,168.28,168.13,97.1512]
[1641326736523,7.1,168.27,168.13,97.1512]
[1641326736817,9.04850786,168.27,168.14,1.3524]
[1641326737116,1.44850786,168.26,168.14,1.6124]
[1641326737317,2.80023038,168.25,168.14,2.1124]
[1641326737516,3.06023038,168.25,168.14,2.1124]
[1641326737715,5.00873824,168.25,168.14,2.1124]
[1641326737916,8.96945078,168.24,168.14,2.1124]
[1641326738318,9.46945078,168.24,168.14,2.1124]
[1641326738517,0.5,168.24,168.14,2.1124]
[1641326738719,4.24873824,168.25,168.14,2.1124]
[1641326738918,4.74873824,168.25,168.14,2.1124]
[1641326739519,24.0243,168.28,168.14,2.1124]
[1641326739520,1.44850786,168.28,168.14,2.1124]
[1641326739718,1.44850786,168.28,168.14,10.66090786]
[1641326740019,31.531681,168.31,168.14,10.66090786]
[1641326740218,31.531681,168.31,168.15,24.3036]
[1641326740420,31.531681,168.31,168.16,7.1]
[1641326740619,31.531681,168.31,168.18,26.51879472]
[1641326740824,2.55649773,168.3,168.18,0.5]
[1641326741021,2.55649773,168.3,168.18,0.76]
[1641326741424,3.05649773,168.3,168.18,0.26]
[1641326741622,26.74869773,168.3,168.17,26.0257]
[1641326741823,7.1,168.29,168.17,26.0257]
[1641326742021,7.36,168.29,168.17,26.0257]
[1641326742222,7.86,168.29,168.17,26.0257]
[1641326743226,7.6,168.29,168.17,26.0257]
[1641326743628,7.6,168.29,168.17,26.5257]
[1641326744327,7.6,168.29,168.17,26.0257]
[1641326744524,7.6,168.29,168.17,25.7657]
[1641326744726,31.707,168.29,168.14,23.2862]
[1641326744927,31.707,168.29,168.14,23.7862]
[1641326745125,31.531681,168.31,168.14,30.8862]
[1641326745325,7.1,168.34,168.15,1.44850786]
[1641326745527,1.55333457,168.35,168.16,7.1]
[1641326745724,0.5,168.34,168.17,24.5331]
[1641326745928,0.5,168.34,168.18,7.1]
[1641326746129,2.60435552,168.33,168.18,7.1]
[1641326746326,33.74946706,168.33,168.18,7.86]
[1641326746527,34.24946706,168.33,168.18,9.1269]
[1641326746927,24.0395,168.32,168.19,23.6998]
[1641326747127,24.0395,168.32,168.2,28.35212635]
[1641326747327,24.5395,168.32,168.2,28.35212635]
[1641326747529,24.7995,168.32,168.2,28.61212635]
[1641326747729,24.7995,168.32,168.2,0.26]
[1641326748030,24.7995,168.32,168.19,23.9598]
[1641326748232,7.1,168.31,168.19,23.6998]
[1641326748434,2.85382184,168.3,168.19,23.6998]
[1641326748831,3.61382184,168.3,168.19,23.6998]
[1641326749433,7.1,168.29,168.13,73.6979]
[1641326749634,7.1,168.29,168.14,24.87]
[1641326749866,7.86,168.29,168.14,24.87]
[1641326750259,100.0666,168.28,168.14,24.87]
[1641326750462,2.66830869,168.27,168.14,24.87]
[1641326750662,2.66830869,168.27,168.14,25.13]
[1641326750964,6.86320731,168.26,168.14,25.13]
[1641326751362,7.36320731,168.26,168.14,25.13]
[1641326752462,7.62320731,168.26,168.14,25.13]
[1641326754964,0.5,168.26,168.14,25.13]
[1641326755164,2.66830869,168.27,168.14,25.13]
[1641326755365,3.16830869,168.27,168.14,25.13]
[1641326755564,2.66830869,168.27,168.14,25.13]
[1641326756865,2.92830869,168.27,168.14,25.13]
[1641326757965,2.92830869,168.27,168.14,24.87]
[1641326758166,3.42830869,168.27,168.14,24.87]
[1641326758966,22.9825,168.26,168.14,24.87]
[1641326759467,23.7425,168.26,168.14,25.13]
[1641326760066,23.7425,168.26,168.14,24.87]
[1641326760366,23.4825,168.26,168.14,24.87]
[1641326761168,0.5,168.26,168.14,24.87]
[1641326761372,3.16830869,168.27,168.14,24.87]
[1641326761670,3.16830869,168.27,168.15,7.1]
[1641326761871,3.16830869,168.27,168.16,23.0803]
[1641326762080,3.16830869,168.27,168.16,23.3403]
[1641326762271,3.16830869,168.27,168.16,23.8403]
[1641326763672,2.66830869,168.27,168.16,23.8403]
[1641326763875,3.16830869,168.27,168.16,23.8403]
[1641326764073,2.66830869,168.27,168.16,23.5803]
[1641326764273,2.66830869,168.27,168.16,23.0803]
[1641326764473,3.42830869,168.27,168.16,23.0803]
[1641326764672,10.03406839,168.26,168.16,23.0803]
[1641326764875,10.53406839,168.26,168.16,23.0803]
[1641326765077,10.79406839,168.26,168.16,23.0803]
[1641326766082,10.79406839,168.26,168.16,23.3403]
[1641326766382,10.79406839,168.26,168.16,23.0803]
[1641326766580,7.1,168.25,168.16,23.0803]
[1641326766781,3.03678782,168.24,168.16,23.0803]
[1641326766979,3.79678782,168.24,168.13,72.3977]
[1641326767180,3.79678782,168.24,168.12,23.5651]
[1641326767386,7.1,168.23,168.12,23.5651]
[1641326767584,7.36,168.23,168.12,23.5651]
[1641326767785,7.86,168.23,168.12,23.5651]
[1641326768185,7.86,168.23,168.1,49.73966089]
[1641326769207,7.86,168.23,168.1,24.2247]
[1641326769507,7.86,168.23,168.1,24.4847]
[1641326770309,7.86,168.23,168.1,55.19155016]
[1641326771511,7.86,168.23,168.1,53.88855016]
[1641326772311,7.86,168.23,168.1,54.38855016]
[1641326772711,7.6,168.23,168.1,54.38855016]
[1641326775718,0.5,168.23,168.1,62.93705802]
[1641326775919,3.53678782,168.24,168.1,62.93705802]
[1641326776819,3.53678782,168.24,168.11,1.3167]
[1641326777019,3.53678782,168.24,168.12,7.1]
[1641326777219,3.53678782,168.24,168.12,8.54850786]
[1641326777419,3.53678782,168.24,168.12,9.30850786]
[1641326779520,0.5,168.24,168.13,1.44850786]
[1641326779722,0.5,168.24,168.13,26.13070786]
[1641326779929,75.9381,168.28,168.13,26.89070786]
[1641326780130,0.5,168.28,168.14,1.44850786]
[1641326780328,0.5,168.28,168.14,9.88630786]
[1641326780530,2.92155726,168.27,168.14,109.31560786]
[1641326780734,2.92155726,168.27,168.15,24.90090786]
[1641326780932,2.92155726,168.27,168.15,25.40090786]
[1641326781128,2.92155726,168.27,168.15,25.66090786]
[1641326786334,2.92155726,168.27,168.17,30.0326258]
[1641326786637,2.92155726,168.27,168.18,1.44850786]
[1641326786840,2.92155726,168.27,168.18,1.94850786]
[1641326787037,2.92155726,168.27,168.18,0.76]
[1641326787452,2.92155726,168.27,168.17,53.4466258]
[1641326787659,2.92155726,168.27,168.17,53.7066258]
[1641326788760,2.92155726,168.27,168.17,53.4466258]
[1641326789159,2.92155726,168.27,168.18,1.44850786]
[1641326789362,2.92155726,168.27,168.18,1.94850786]
[1641326789560,2.92155726,168.27,168.18,0.5]
[1641326790163,2.92155726,168.27,168.17,53.7066258]
[1641326790364,49.11902654,168.32,168.17,53.7066258]
[1641326790564,0.76,168.32,168.18,1.44850786]
[1641326790765,0.5,168.32,168.18,8.80850786]
[1641326790963,0.02,168.34,168.19,25.7259]
[1641326791173,83.9018,168.35,168.19,25.7259]
[1641326791372,84.4018,168.35,168.2,1.44850786]
[1641326791677,2.65953237,168.34,168.21,7.1]
[1641326791875,3.15953237,168.34,168.21,7.6]
[1641326792073,29.08943237,168.34,168.22,23.9259]
[1641326792473,29.08943237,168.34,168.22,24.4259]
[1641326793276,29.08943237,168.34,168.22,24.6859]
[1641326793681,28.58943237,168.34,168.22,24.6859]
[1641326794077,29.08943237,168.34,168.22,24.6859]
[1641326794678,28.58943237,168.34,168.22,24.6859]
[1641326795380,29.08943237,168.34,168.22,24.6859]
[1641326798081,29.08943237,168.34,168.23,1.44850786]
[1641326798283,29.08943237,168.34,168.24,27.59866081]
[1641326798600,29.08943237,168.34,168.24,27.85866081]
[1641326799007,28.58943237,168.34,168.24,27.85866081]
[1641326799808,29.08943237,168.34,168.24,28.35866081]
[1641326801610,3.15953237,168.34,168.24,28.35866081]
[1641326804217,2.65953237,168.34,168.24,28.35866081]
[1641326804419,2.65953237,168.34,168.24,52.82496081]
[1641326810151,2.65953237,168.34,168.25,1.44850786]
[1641326810451,2.65953237,168.34,168.25,2.20850786]
[1641326811254,2.65953237,168.34,168.26,1.44850786]
[1641326811453,2.65953237,168.34,168.26,1.94850786]
[1641326811655,2.65953237,168.34,168.26,0.76]
[1641326811953,2.65953237,168.34,168.26,2.20850786]
[1641326812154,2.65953237,168.34,168.26,1.70850786]
[1641326812353,2.65953237,168.34,168.26,2.20850786]
[1641326812953,24.5472,168.37,168.26,2.20850786]
[1641326813554,25.0472,168.37,168.26,0.76]
[1641326813754,9.124,168.38,168.27,1.44850786]
[1641326814054,2.52494683,168.37,168.27,2.20850786]
[1641326814256,2.52494683,168.37,168.27,9.30850786]
[1641326816459,2.52494683,168.37,168.27,8.54850786]
[1641326816658,2.52494683,168.37,168.25,2.76670786]
[1641326816857,2.52494683,168.37,168.25,1.3182]
[1641326817662,2.52494683,168.37,168.25,2.76670786]
[1641326817863,2.52494683,168.37,168.25,3.52670786]
[1641326818264,2.52494683,168.37,168.25,2.0782]
[1641326818864,3.02494683,168.37,168.25,2.0782]
[1641326819065,3.28494683,168.37,168.25,0.5]
[1641326819465,3.28494683,168.37,168.24,24.9663]
[1641326819864,22.6896,168.36,168.24,24.9663]
[1641326820566,22.6896,168.36,168.24,25.2263]
[1641326821468,23.1896,168.36,168.24,25.2263]
[1641326821667,22.6896,168.36,168.24,25.2263]
[1641326823467,23.1896,168.36,168.24,25.2263]
[1641326824471,22.6896,168.36,168.24,25.2263]
[1641326827774,23.1896,168.36,168.24,25.2263]
[1641326828678,22.6896,168.36,168.24,25.2263]
[1641326828872,23.1896,168.36,168.24,33.77480786]
[1641326830975,22.6896,168.36,168.24,33.77480786]
[1641326831976,3.84924683,168.37,168.24,33.77480786]
[1641326832379,2.52494683,168.37,168.24,33.77480786]
[1641326833183,2.52494683,168.37,168.25,1.302]
[1641326833379,2.52494683,168.37,168.26,7.1]